[Event "Caplin Hastings Masters 2023-24"]
[Site "Hastings"]
[Date "2024.01.02"]
[Round "6.23"]
[White "Steiners, Emils"]
[Black "Southcott-Moyers, Indy"]
[Result "1/2-1/2"]
[ECO "D36"]
[WhiteElo "1993"]
[BlackElo "2123"]
[Annotator "NA RC"]
[PlyCount "68"]
[EventDate "2023.12.18"]
[EventType "swiss"]
[EventCountry "ENG"]
[SourceTitle "playchess.com"]
[Source "ChessBase"]
[SourceQuality "1"]
[TimeControl "40/6000+30:3000+30"]

1. d4 {[%emt 0:00:02]} d5 {[%emt 0:00:06]} 2. c4 {[%emt 0:00:02]} e6 {[%emt 0:00:04]} 3. Nc3 {[%emt 0:00:06]} Nf6 {[%emt 0:00:04]} 4. cxd5 {[%emt 0:00:08]} exd5 {[%emt 0:00:05]} 5. Bg5 {[%emt 0:00:05]} Be7 {[%emt 0:00:59]} 6. e3 {[%emt 0:00:41]} c6 {[%emt 0:00:24]} 7. Qc2 {[%emt 0:02:11]} Nbd7 {[%emt 0:01:32]} 8. Bd3 {[%emt 0:00:17]} Nh5 {[%emt 0:02:56]} 9. Bxe7 {[%emt 0:01:09]} Qxe7 {[%emt 0:00:12]} 10. O-O-O {[%emt 0:10:41]} Nb6 {[%emt 0:08:58]} 11. h3 {[%emt 0:03:34]} g6 {[%emt 0:04:58]} 12. Nf3 {[%emt 0:03:34]} Be6 {[%emt 0:03:42]} 13. Kb1 {[%emt 0:12:50]} O-O-O {[%emt 0:09:46]} 14. Rhe1 {[%emt 0:04:41]} Kb8 {[%emt 0:03:22]} 15. Na4 {[%emt 0:02:26]} Nxa4 {[%emt 0:07:08]} 16. Qxa4 {[%emt 0:00:23]} Ng7 {[%emt 0:05:05]} 17. Rc1 {[%emt 0:04:22]} Bf5 {[%emt 0:10:08]} 18. Bxf5 {[%emt 0:03:52]} Nxf5 {[%emt 0:00:08]} 19. Rc3 {[%emt 0:16:43]} Nd6 {[%emt 0:07:59]} 20. Qb4 {[%emt 0:06:14]} Nc8 {[%emt 0:09:52]} 21. Qxe7 {[%emt 0:02:58]} Nxe7 {[%emt 0:00:02]} 22. Ne5 {[%emt 0:02:25]} Rhf8 {[%emt 0:00:59]} 23. Kc2 {[%emt 0:00:54]} Nf5 {[%emt 0:02:42]} 24. b3 {[%emt 0:06:06]} Nd6 {[%emt 0:00:23]} 25. Kd1 {[%emt 0:05:24]} Kc7 {[%emt 0:03:23]} 26. f3 {[%emt 0:01:35]} Rde8 {[%emt 0:04:09]} 27. Kd2 {[%emt 0:01:57]} f6 {[%emt 0:05:20]} 28. Nd3 {[%emt 0:00:58]} Re7 {[%emt 0:00:33]} 29. g4 {[%emt 0:05:08]} Kd8 {[%emt 0:01:35]} 30. a4 {[%emt 0:01:06]} a6 {[%emt 0:05:07]} 31. Nc5 {[%emt 0:05:04]} Rfe8 {[%emt 0:03:32]} 32. Nd3 {[%emt 0:01:28]} Rf8 {[%emt 0:02:33]} 33. Rc2 {[%emt 0:01:02]} Rfe8 {[%emt 0:00:58]} 34. Rc3 {[%emt 0:01:20]} Rf8 {[%emt 0:01:31]} 1/2-1/2

[Event "Caplin Hastings Masters 2023-24"]
[Site "Hastings"]
[Date "2024.01.02"]
[Round "6.24"]
[White "Banerjee, Supratit"]
[Black "Ismail, Mohammed Aayan"]
[Result "0-1"]
[ECO "B15"]
[WhiteElo "1974"]
[BlackElo "2115"]
[Annotator "NA RC"]
[PlyCount "110"]
[EventDate "2023.12.18"]
[EventType "swiss"]
[EventCountry "ENG"]
[SourceTitle "playchess.com"]
[Source "ChessBase"]
[SourceQuality "1"]
[TimeControl "40/6000+30:3000+30"]

1. e4 {[%emt 0:00:23]} c6 {[%emt 0:00:42]} 2. d4 {[%emt 0:00:18]} d5 {[%emt 0:00:00]} 3. Nd2 {[%emt 0:01:16]} dxe4 {[%emt 0:00:00]} 4. Nxe4 {[%emt 0:01:05]} Nf6 {[%emt 0:00:53]} 5. Nxf6+ {[%emt 0:00:33]} exf6 {[%emt 0:00:09]} 6. c3 {[%emt 0:03:31]} Bd6 {[%emt 0:00:35]} 7. Bd3 {[%emt 0:02:08]} O-O {[%emt 0:00:12]} 8. Qc2 {[%emt 0:05:06]} Re8+ {[%emt 0:00:23]} 9. Ne2 {[%emt 0:00:10]} h5 {[%emt 0:00:31]} 10. Be3 {[%emt 0:00:18]} Nd7 {[%emt 0:00:53]} 11. O-O-O {[%emt 0:00:25]} Nf8 {[%emt 0:00:37]} 12. Ng3 {[%emt 0:01:24]} Be6 {[%emt 0:06:29]} 13. c4 {[%emt 0:06:12]} h4 {[%emt 0:06:33]} 14. Nf5 {[%emt 0:00:47]} Ng6 {[%emt 0:02:24]} 15. g3 {[%emt 0:12:18]} h3 {[%emt 0:04:25]} 16. Rhe1 {[%emt 0:06:40]} b5 {[%emt 0:09:35]} 17. d5 {[%emt 0:18:13]} cxd5 {[%emt 0:08:21]} 18. c5 {[%emt 0:01:21]} Bf8 {[%emt 0:05:04]} 19. Nd4 {[%emt 0:02:37]} Bxc5 {[%emt 0:15:48]} 20. Qxc5 {[%emt 0:01:32]} Rc8 {[%emt 0:00:31]} 21. Nc6 {[%emt 0:00:22]} Qd7 {[%emt 0:20:57]} 22. Bxb5 {[%emt 0:02:27]} a6 {[%emt 0:01:02]} 23. Ba4 {[%emt 0:01:01]} Ne5 {[%emt 0:02:09]} 24. Kb1 {[%emt 0:09:56]} Nxc6 {[%emt 0:01:08]} 25. Rc1 {[%emt 0:00:23]} Bf5+ {[%emt 0:02:36]} 26. Ka1 {[%emt 0:00:08]} Re6 {[%emt 0:00:28]} 27. Bd2 {[%emt 0:02:16]} Rxe1 {[%emt 0:03:37]} 28. Bxe1 {[%emt 0:00:08]} Qe8 {[%emt 0:04:58]} 29. Bxc6 {[%emt 0:04:15]} Bd7 {[%emt 0:00:07]} 30. Qxd5 {[%emt 0:00:31]} Rxc6 {[%emt 0:00:37]} 31. Bc3 {[%emt 0:00:17]} Be6 {[%emt 0:00:55]} 32. Qa5 {[%emt 0:00:39]} Qd7 {[%emt 0:02:35]} 33. a3 {[%emt 0:01:47]} Qd3 {[%emt 0:01:05]} 34. Re1 {[%emt 0:06:10]} Qc4 {[%emt 0:01:39]} 35. Kb1 {[%emt 0:02:45]} Qd3+ {[%emt 0:01:01]} 36. Ka1 {[%emt 0:00:17]} Qc4 {[%emt 0:00:03]} 37. Kb1 {[%emt 0:00:12]} Rc5 {[%emt 0:00:16]} 38. Qd8+ {[%emt 0:04:24]} Kh7 {[%emt 0:00:02]} 39. Qd4 {[%emt 0:01:07]} Qa2+ {[%emt 0:00:14]} 40. Kc1 {[%emt 0:00:16]} Rd5 {[%emt 0:01:09]} 41. Qe4+ {[%emt 0:51:08]} Bf5 {[%emt 0:51:44]} 42. Qxd5 {[%emt 0:11:47]} Qxd5 {[%emt 0:00:03]} 43. Re3 {[%emt 0:00:13]} Qh1+ {[%emt 0:00:36]} 44. Kd2 {[%emt 0:00:10]} Qxh2 {[%emt 0:00:05]} 45. Rf3 {[%emt 0:00:10]} Bg4 {[%emt 0:00:26]} 46. Rf4 {[%emt 0:00:10]} f5 {[%emt 0:00:19]} 47. Ke3 {[%emt 0:00:09]} Qg1 {[%emt 0:00:10]} 48. Kd4 {[%emt 0:00:07]} h2 {[%emt 0:00:08]} 49. Kc5 {[%emt 0:00:05]} h1=Q {[%emt 0:00:06]} 50. Kb4 {[%emt 0:00:18]} Qb7+ {[%emt 0:00:24]} 51. Kc5 {[%emt 0:00:11]} Qd1 {[%emt 0:00:38]} 52. Rd4 {[%emt 0:00:09]} Qc7+ {[%emt 0:00:35]} 53. Kb4 {[%emt 0:00:35]} a5+ {[%emt 0:00:04]} 54. Kb5 {[%emt 0:00:07]} Be2+ {[%emt 0:00:08]} 55. Rd3 {[%emt 0:00:14]} Bxd3# {[%emt 0:00:43]} 0-1

[Event "Caplin Hastings Masters 2023-24"]
[Site "Hastings"]
[Date "2024.01.02"]
[Round "6.25"]
[White "Teh, Wee Zhun"]
[Black "Bai, Xue"]
[Result "0-1"]
[ECO "C52"]
[WhiteElo "1858"]
[BlackElo "2099"]
[Annotator "NA RC"]
[PlyCount "80"]
[EventDate "2023.12.18"]
[EventType "swiss"]
[EventCountry "ENG"]
[SourceTitle "playchess.com"]
[Source "ChessBase"]
[SourceQuality "1"]
[TimeControl "40/6000+30:3000+30"]

1. e4 {[%emt 0:03:05]} e5 {[%emt 0:00:06]} 2. Nf3 {[%emt 0:00:15]} Nc6 {[%emt 0:00:06]} 3. Bc4 {[%emt 0:00:19]} Bc5 {[%emt 0:00:07]} 4. b4 {[%emt 0:01:03]} Bxb4 {[%emt 0:00:52]} 5. c3 {[%emt 0:00:12]} Ba5 {[%emt 0:03:21]} 6. d4 {[%emt 0:00:28]} exd4 {[%emt 0:02:59]} 7. Qb3 {[%emt 0:00:36]} Qe7 {[%emt 0:01:46]} 8. O-O {[%emt 0:00:50]} Bb6 {[%emt 0:07:05]} 9. cxd4 {[%emt 0:01:53]} Na5 {[%emt 0:09:44]} 10. Qa4 {[%emt 0:06:13]} Nxc4 {[%emt 0:00:43]} 11. Qxc4 {[%emt 0:01:04]} d6 {[%emt 0:03:45]} 12. e5 {[%emt 0:23:49]} d5 {[%emt 0:03:53]} 13. Qxd5 {[%emt 0:02:47]} Qe6 {[%emt 0:00:07]} 14. Nc3 {[%emt 0:20:35]} Qxd5 {[%emt 0:04:24]} 15. Nxd5 {[%emt 0:00:05]} Be6 {[%emt 0:00:14]} 16. Nf4 {[%emt 0:05:55]} Bc4 {[%emt 0:02:22]} 17. Rd1 {[%emt 0:03:55]} O-O-O {[%emt 0:02:33]} 18. Be3 {[%emt 0:05:16]} Ne7 {[%emt 0:00:49]} 19. Nd2 {[%emt 0:07:11]} Bd5 {[%emt 0:00:35]} 20. Nxd5 {[%emt 0:05:15]} Rxd5 {[%emt 0:00:18]} 21. Nc4 {[%emt 0:03:07]} Nc6 {[%emt 0:00:56]} 22. Nxb6+ {[%emt 0:01:47]} axb6 {[%emt 0:00:03]} 23. Rd2 {[%emt 0:01:59]} Kd7 {[%emt 0:01:48]} 24. Kf1 {[%emt 0:02:17]} Ra8 {[%emt 0:00:06]} 25. f4 {[%emt 0:05:07]} Ke6 {[%emt 0:01:22]} 26. g4 {[%emt 0:01:45]} Rda5 {[%emt 0:00:46]} 27. d5+ {[%emt 0:03:00]} Rxd5 {[%emt 0:00:07]} 28. f5+ {[%emt 0:00:28]} Kxe5 {[%emt 0:00:32]} 29. Bf4+ {[%emt 0:00:31]} Ke4 {[%emt 0:06:41]} 30. Rf2 {[%emt 0:02:23]} Rd3 {[%emt 0:06:02]} 31. Bxc7 {[%emt 0:00:46]} b5 {[%emt 0:00:06]} 32. Rc1 {[%emt 0:01:51]} Raa3 {[%emt 0:02:56]} 33. Rc5 {[%emt 0:00:29]} b4 {[%emt 0:00:15]} 34. Rb5 {[%emt 0:00:39]} Rf3 {[%emt 0:01:16]} 35. Rxb7 {[%emt 0:00:27]} Rxf2+ {[%emt 0:00:06]} 36. Kxf2 {[%emt 0:00:02]} Rxa2+ {[%emt 0:00:06]} 37. Kg3 {[%emt 0:00:14]} Ra7 {[%emt 0:00:19]} 38. Rxa7 {[%emt 0:01:13]} Nxa7 {[%emt 0:00:05]} 39. Ba5 {[%emt 0:00:18]} Nc6 {[%emt 0:00:09]} 40. Bb6 {[%emt 0:00:49]} b3 {[%emt 0:00:08]} 0-1

[Event "Caplin Hastings Masters 2023-24"]
[Site "Hastings"]
[Date "2024.01.02"]
[Round "6.26"]
[White "Weersing, Abigail Riis"]
[Black "Vasiliadis, Theodoros"]
[Result "0-1"]
[ECO "E70"]
[WhiteElo "2056"]
[BlackElo "1845"]
[Annotator "NA RC"]
[PlyCount "84"]
[EventDate "2023.12.18"]
[EventType "swiss"]
[EventCountry "ENG"]
[SourceTitle "playchess.com"]
[Source "ChessBase"]
[SourceQuality "1"]
[TimeControl "40/6000+30:3000+30"]

1. d4 {[%emt 0:00:02]} Nf6 {[%emt 0:00:03]} 2. c4 {[%emt 0:00:07]} g6 {[%emt 0:00:06]} 3. Nc3 {[%emt 0:00:05]} Bg7 {[%emt 0:00:10]} 4. e4 {[%emt 0:00:07]} d6 {[%emt 0:00:04]} 5. Nge2 {[%emt 0:00:34]} Nbd7 {[%emt 0:00:17]} 6. Ng3 {[%emt 0:00:20]} h5 {[%emt 0:00:47]} 7. Be2 {[%emt 0:00:41]} h4 {[%emt 0:04:04]} 8. Nf1 {[%emt 0:00:12]} h3 {[%emt 0:14:09]} 9. g4 {[%emt 0:03:22]} c5 {[%emt 0:08:17]} 10. d5 {[%emt 0:00:17]} Nb6 {[%emt 0:20:06]} 11. a4 {[%emt 0:09:31]} Rb8 {[%emt 0:04:08]} 12. Bf4 {[%emt 0:07:11]} Bxg4 {[%emt 0:15:53]} 13. Bxg4 {[%emt 0:02:47]} Nxc4 {[%emt 0:02:00]} 14. Be2 {[%emt 0:11:44]} Nh5 {[%emt 0:13:06]} 15. Bc1 {[%emt 0:05:38]} Na5 {[%emt 0:02:20]} 16. Be3 {[%emt 0:14:42]} a6 {[%emt 0:02:35]} 17. Ng3 {[%emt 0:04:07]} Nxg3 {[%emt 0:00:31]} 18. fxg3 {[%emt 0:00:18]} Qb6 {[%emt 0:00:51]} 19. Rb1 {[%emt 0:02:46]} Qb4 {[%emt 0:03:24]} 20. Qd3 {[%emt 0:07:21]} c4 {[%emt 0:09:14]} 21. Qc2 {[%emt 0:01:15]} Nb3 {[%emt 0:01:58]} 22. Rd1 {[%emt 0:01:49]} b5 {[%emt 0:02:16]} 23. axb5 {[%emt 0:01:00]} axb5 {[%emt 0:00:05]} 24. O-O {[%emt 0:03:32]} Be5 {[%emt 0:01:55]} 25. Rf3 {[%emt 0:06:46]} Nc5 {[%emt 0:01:30]} 26. Bd4 {[%emt 0:01:27]} Nd3 {[%emt 0:02:37]} 27. Bxe5 {[%emt 0:04:04]} Nxe5 {[%emt 0:00:17]} 28. Rff1 {[%emt 0:01:18]} Qc5+ {[%emt 0:00:13]} 29. Kh1 {[%emt 0:00:14]} b4 {[%emt 0:00:55]} 30. Nb1 {[%emt 0:03:58]} c3 {[%emt 0:00:51]} 31. bxc3 {[%emt 0:02:12]} b3 {[%emt 0:00:18]} 32. Qd2 {[%emt 0:00:39]} Qa5 {[%emt 0:00:54]} 33. c4 {[%emt 0:02:56]} Rb4 {[%emt 0:00:31]} 34. Qc3 {[%emt 0:03:05]} O-O {[%emt 0:00:11]} 35. Nd2 {[%emt 0:00:53]} Qb6 {[%emt 0:00:22]} 36. Nb1 {[%emt 0:07:50]} Ra8 {[%emt 0:00:29]} 37. Rd2 {[%emt 0:01:53]} Ra2 {[%emt 0:00:25]} 38. Rfd1 {[%emt 0:01:39]} Rc2 {[%emt 0:00:49]} 39. Qa1 {[%emt 0:01:00]} Qf2 {[%emt 0:00:32]} 40. Qa8+ {[%emt 0:00:18]} Kg7 {[%emt 0:00:24]} 41. Bf1 {[%emt 0:06:38]} Rxd2 {[%emt 0:00:25]} 42. Nxd2 {[%emt 0:00:33]} Ng4 {[%emt 0:00:26]} 0-1

[Event "Caplin Hastings Masters 2023-24"]
[Site "Hastings"]
[Date "2024.01.02"]
[Round "6.27"]
[White "Dewangan, Aayush"]
[Black "Evenshaug, Amadeus Hestvik"]
[Result "0-1"]
[ECO "B90"]
[WhiteElo "1655"]
[BlackElo "2041"]
[Annotator "RC"]
[PlyCount "168"]
[EventDate "2023.12.18"]
[EventType "swiss"]
[EventCountry "ENG"]
[SourceTitle "playchess.com"]
[Source "ChessBase"]
[SourceQuality "1"]
[TimeControl "40/6000+30:3000+30"]

1. e4 {[%emt 0:00:04]} c5 {[%emt 0:00:32]} 2. Nf3 {[%emt 0:00:06]} d6 {[%emt 0:00:24]} 3. d4 {[%emt 0:00:13]} cxd4 {[%emt 0:00:09]} 4. Nxd4 {[%emt 0:00:06]} Nf6 {[%emt 0:00:08]} 5. Nc3 {[%emt 0:00:04]} a6 {[%emt 0:00:07]} 6. Be3 {[%emt 0:00:12]} e5 {[%emt 0:00:25]} 7. Nb3 {[%emt 0:00:12]} Be6 {[%emt 0:00:09]} 8. h3 {[%emt 0:00:20]} d5 {[%emt 0:04:02]} 9. exd5 {[%emt 0:17:44]} Nxd5 {[%emt 0:00:07]} 10. Nxd5 {[%emt 0:01:58]} Qxd5 {[%emt 0:01:30]} 11. Qxd5 {[%emt 0:01:14]} Bxd5 {[%emt 0:00:05]} 12. O-O-O {[%emt 0:02:20]} Bc6 {[%emt 0:09:11]} 13. Na5 {[%emt 0:03:39]} Bb4 {[%emt 0:03:22]} 14. Nc4 {[%emt 0:07:06]} Nd7 {[%emt 0:01:39]} 15. a3 {[%emt 0:03:41]} Be7 {[%emt 0:03:11]} 16. Na5 {[%emt 0:00:29]} Rc8 {[%emt 0:03:27]} 17. Nxc6 {[%emt 0:01:08]} Rxc6 {[%emt 0:00:19]} 18. g4 {[%emt 0:04:00]} Bc5 {[%emt 0:06:02]} 19. Rd5 {[%emt 0:15:19]} Bxe3+ {[%emt 0:01:43]} 20. fxe3 {[%emt 0:00:03]} Ke7 {[%emt 0:14:15]} 21. Bg2 {[%emt 0:01:43]} Rhc8 {[%emt 0:04:39]} 22. Be4 {[%emt 0:09:18]} Rc5 {[%emt 0:11:10]} 23. Rhd1 {[%emt 0:06:48]} Rxd5 {[%emt 0:01:39]} 24. Bxd5 {[%emt 0:00:03]} Rc7 {[%emt 0:00:42]} 25. b3 {[%emt 0:07:05]} Nc5 {[%emt 0:10:47]} 26. e4 {[%emt 0:01:53]} b6 {[%emt 0:05:06]} 27. Kb2 {[%emt 0:01:43]} Rd7 {[%emt 0:00:54]} 28. Rf1 {[%emt 0:00:22]} Ne6 {[%emt 0:00:48]} 29. c4 {[%emt 0:04:09]} Nf4 {[%emt 0:00:14]} 30. Rf3 {[%emt 0:00:42]} f6 {[%emt 0:00:34]} 31. Rc3 {[%emt 0:01:20]} Rc7 {[%emt 0:03:56]} 32. Kc2 {[%emt 0:01:22]} Ne2 {[%emt 0:00:52]} 33. Re3 {[%emt 0:01:30]} Nd4+ {[%emt 0:00:46]} 34. Kd2 {[%emt 0:01:56]} a5 {[%emt 0:02:45]} 35. Rc3 {[%emt 0:02:55]} Kd6 {[%emt 0:00:40]} 36. b4 {[%emt 0:02:48]} axb4 {[%emt 0:00:34]} 37. axb4 {[%emt 0:00:02]} Ra7 {[%emt 0:00:18]} 38. c5+ {[%emt 0:01:30]} bxc5 {[%emt 0:03:30]} 39. Rxc5 {[%emt 0:01:39]} Ra3 {[%emt 0:00:30]} 40. Ra5 {[%emt 0:01:20]} Rxa5 {[%emt 0:14:36]} 41. bxa5 {[%emt 0:50:08]} Kc5 {[%emt 0:50:05]} 42. Bg8 {[%emt 0:10:32]} Kb5 {[%emt 0:00:00]} 43. Bxh7 {[%emt 0:00:00]} Nf3+ {[%emt 0:00:00]} 44. Kc3 {[%emt 0:00:00]} Ng5 {[%emt 0:00:00]} 45. Bf5 {[%emt 0:00:00]} Nxh3 {[%emt 0:00:00]} 46. a6 {[%emt 0:00:00]} Kxa6 {[%emt 0:00:00]} 47. Kc4 {[%emt 0:00:00]} Nf2 {[%emt 0:00:00]} 48. Kd5 {[%emt 0:00:00]} Kb6 {[%emt 0:00:59]} 49. Ke6 {[%emt 0:00:00]} Kc6 {[%emt 0:01:31]} 50. Kf7 {[%emt 0:00:00]} Kd6 {[%emt 0:00:10]} 51. Kxg7 {[%emt 0:00:00]} Ke7 {[%emt 0:00:07]} 52. Kg6 {[%emt 0:00:00]} Nd3 {[%emt 0:00:19]} 53. Kh5 {[%emt 0:00:00]} Kf7 {[%emt 0:00:20]} 54. Kh4 {[%emt 0:00:00]} Kg7 {[%emt 0:00:11]} 55. Kg3 {[%emt 0:00:00]} Kh6 {[%emt 0:00:09]} 56. Kh4 {[%emt 0:00:00]} Nc5 {[%emt 0:00:46]} 57. Kg3 {[%emt 0:00:00]} Kg5 {[%emt 0:00:09]} 58. Kf3 {[%emt 0:00:00]} Kh4 {[%emt 0:00:42]} 59. Bc8 {[%emt 0:00:00]} Nb3 {[%emt 0:00:18]} 60. Ke3 {[%emt 0:00:00]} Kg3 {[%emt 0:00:13]} 61. Bd7 {[%emt 0:00:00]} Nd4 {[%emt 0:00:50]} 62. Bc8 {[%emt 0:00:00]} Nf3 {[%emt 0:00:29]} 63. Bf5 {[%emt 0:00:00]} Nh2 {[%emt 0:00:10]} 64. Ke2 {[%emt 0:00:28]} Nxg4 {[%emt 0:00:22]} 65. Bh7 {[%emt 0:01:11]} Kf4 {[%emt 0:00:17]} 66. Bf5 {[%emt 0:00:20]} Ne3 {[%emt 0:00:27]} 67. Bh7 {[%emt 0:00:20]} Nc4 {[%emt 0:00:07]} 68. Kd3 {[%emt 0:00:21]} Nd6 {[%emt 0:00:34]} 69. Bg6 {[%emt 0:00:05]} Nb5 {[%emt 0:01:16]} 70. Bf5 {[%emt 0:00:21]} Nc7 {[%emt 0:00:48]} 71. Bg6 {[%emt 0:00:31]} Ne6 {[%emt 0:00:12]} 72. Kc4 {[%emt 0:00:12]} Nd4 {[%emt 0:01:41]} 73. Kd3 {[%emt 0:00:33]} Nf3 {[%emt 0:00:17]} 74. Bf5 {[%emt 0:00:53]} Ng5 {[%emt 0:00:23]} 75. Bg6 {[%emt 0:00:10]} Nh3 {[%emt 0:04:04]} 76. Ke2 {[%emt 0:00:13]} Ng1+ {[%emt 0:00:36]} 77. Kf2 {[%emt 0:00:57]} Nf3 {[%emt 0:00:08]} 78. Ke2 {[%emt 0:00:07]} Nd4+ {[%emt 0:00:28]} 79. Kd3 {[%emt 0:00:10]} Ne6 {[%emt 0:01:59]} 80. Kc4 {[%emt 0:00:21]} Ke3 {[%emt 0:00:18]} 81. Bf5 {[%emt 0:01:17]} Nd4 {[%emt 0:00:22]} 82. Kd5 {[%emt 0:03:00]} Nxf5 {[%emt 0:00:19]} 83. exf5 {[%emt 0:00:08]} Kf4 {[%emt 0:00:06]} 84. Ke6 {[%emt 0:00:12]} Kg5 {[%emt 0:00:04]} 0-1

[Event "Caplin Hastings Masters 2023-24"]
[Site "Hastings"]
[Date "2024.01.02"]
[Round "6.28"]
[White "Ahn, Sungmin"]
[Black "Lahlum, Hans Olav"]
[Result "1/2-1/2"]
[ECO "C18"]
[WhiteElo "1836"]
[BlackElo "2037"]
[Annotator "RC"]
[PlyCount "115"]
[EventDate "2023.12.18"]
[EventType "swiss"]
[EventCountry "ENG"]
[SourceTitle "playchess.com"]
[Source "ChessBase"]
[SourceQuality "1"]
[TimeControl "40/6000+30:3000+30"]

1. e4 {[%emt 0:00:07]} e6 {[%emt 0:00:02]} 2. d4 {[%emt 0:00:06]} d5 {[%emt 0:00:03]} 3. Nc3 {[%emt 0:00:07]} Bb4 {[%emt 0:00:05]} 4. e5 {[%emt 0:00:04]} c5 {[%emt 0:00:03]} 5. a3 {[%emt 0:00:06]} Bxc3+ {[%emt 0:00:05]} 6. bxc3 {[%emt 0:00:06]} Ne7 {[%emt 0:00:05]} 7. Qg4 {[%emt 0:00:26]} O-O {[%emt 0:00:22]} 8. Bd3 {[%emt 0:00:55]} f5 {[%emt 0:00:12]} 9. exf6 {[%emt 0:00:30]} Rxf6 {[%emt 0:00:05]} 10. Bg5 {[%emt 0:00:17]} Rf7 {[%emt 0:00:06]} 11. Qh4 {[%emt 0:01:06]} h6 {[%emt 0:00:13]} 12. Nf3 {[%emt 0:11:50]} c4 {[%emt 0:26:40]} 13. Bg6 {[%emt 0:13:42]} Nxg6 {[%emt 0:02:59]} 14. Bxd8 {[%emt 0:00:07]} Nxh4 {[%emt 0:00:14]} 15. Bxh4 {[%emt 0:00:40]} Nc6 {[%emt 0:00:35]} 16. Rb1 {[%emt 0:01:08]} b6 {[%emt 0:00:29]} 17. Bg3 {[%emt 0:02:37]} Bd7 {[%emt 0:03:04]} 18. Kd2 {[%emt 0:05:55]} g5 {[%emt 0:00:00]} 19. h4 {[%emt 0:14:53]} g4 {[%emt 0:02:36]} 20. Nh2 {[%emt 0:00:25]} h5 {[%emt 0:01:16]} 21. Rhf1 {[%emt 0:03:14]} Ne7 {[%emt 0:03:05]} 22. Rbe1 {[%emt 0:17:02]} Nf5 {[%emt 0:03:42]} 23. Re5 {[%emt 0:00:04]} Raf8 {[%emt 0:09:32]} 24. Bf4 {[%emt 0:08:00]} Nxh4 {[%emt 0:06:50]} 25. Rg5+ {[%emt 0:09:27]} Rg7 {[%emt 0:01:07]} 26. Rxh5 {[%emt 0:01:09]} Rxf4 {[%emt 0:07:05]} 27. Rxh4 {[%emt 0:00:06]} Re4 {[%emt 0:00:47]} 28. Re1 {[%emt 0:02:30]} Rxe1 {[%emt 0:14:35]} 29. Kxe1 {[%emt 0:00:06]} g3 {[%emt 0:00:58]} 30. fxg3 {[%emt 0:01:23]} Rxg3 {[%emt 0:03:38]} 31. Rg4+ {[%emt 0:00:24]} Rxg4 {[%emt 0:00:04]} 32. Nxg4 {[%emt 0:00:13]} Kg7 {[%emt 0:01:06]} 33. Kf2 {[%emt 0:00:34]} Ba4 {[%emt 0:01:38]} 34. Ne3 {[%emt 0:02:07]} Kf6 {[%emt 0:00:30]} 35. Kf3 {[%emt 0:00:19]} Kg5 {[%emt 0:01:20]} 36. g3 {[%emt 0:05:33]} Be8 {[%emt 0:02:56]} 37. g4 {[%emt 0:07:51]} Bg6 {[%emt 0:02:34]} 38. Kg3 {[%emt 0:02:15]} Be4 {[%emt 0:00:59]} 39. Nd1 {[%emt 0:00:44]} Bxc2 {[%emt 0:01:08]} 40. Nf2 {[%emt 0:00:14]} b5 {[%emt 0:08:19]} 41. Nh3+ {[%emt 0:52:05]} Kf6 {[%emt 0:51:10]} 42. Kf4 {[%emt 0:00:00]} a5 {[%emt 0:00:00]} 43. Nf2 {[%emt 0:00:00]} Bh7 {[%emt 0:00:00]} 44. g5+ {[%emt 0:00:00]} Ke7 {[%emt 0:00:00]} 45. Ng4 {[%emt 0:00:00]} Kd6 {[%emt 0:00:00]} 46. Ne5 {[%emt 0:00:00]} Bf5 {[%emt 0:00:00]} 47. g6 {[%emt 0:00:00]} Ke7 {[%emt 0:00:00]} 48. Ke3 {[%emt 0:00:09]} Kf6 {[%emt 0:00:00]} 49. Kd2 {[%emt 0:01:37]} Bxg6 {[%emt 0:00:00]} 50. Nc6 {[%emt 0:00:28]} a4 {[%emt 0:00:00]} 51. Ke3 {[%emt 0:00:53]} Be8 {[%emt 0:00:00]} 52. Ne5 {[%emt 0:01:36]} Bg6 {[%emt 0:05:07]} 53. Nc6 {[%emt 0:00:16]} Be8 {[%emt 0:01:03]} 54. Ne5 {[%emt 0:00:03]} Kf5 {[%emt 0:00:40]} 55. Kf3 {[%emt 0:00:37]} Bh5+ {[%emt 0:05:04]} 56. Ke3 {[%emt 0:00:04]} Be8 {[%emt 0:00:42]} 57. Kf3 {[%emt 0:00:06]} Bh5+ {[%emt 0:00:49]} 58. Ke3 {[%emt 0:00:05]} 1/2-1/2

[Event "Caplin Hastings Masters 2023-24"]
[Site "Hastings"]
[Date "2024.01.02"]
[Round "6.29"]
[White "Rayner, Francis"]
[Black "Park, Inchan"]
[Result "1-0"]
[ECO "A10"]
[WhiteElo "2035"]
[BlackElo "1768"]
[Annotator "NA RC"]
[PlyCount "75"]
[EventDate "2023.12.18"]
[EventType "swiss"]
[EventCountry "ENG"]
[SourceTitle "playchess.com"]
[Source "ChessBase"]
[SourceQuality "1"]
[TimeControl "40/6000+30:3000+30"]

1. c4 {[%emt 0:00:26]} b6 {[%emt 0:00:17]} 2. Nc3 {[%emt 0:00:50]} Bb7 {[%emt 0:00:12]} 3. e4 {[%emt 0:00:51]} e5 {[%emt 0:00:46]} 4. Nf3 {[%emt 0:01:02]} Nc6 {[%emt 0:00:06]} 5. a3 {[%emt 0:00:38]} Nf6 {[%emt 0:05:30]} 6. Bd3 {[%emt 0:05:01]} Be7 {[%emt 0:05:07]} 7. b4 {[%emt 0:11:27]} d6 {[%emt 0:00:26]} 8. Bb2 {[%emt 0:01:23]} O-O {[%emt 0:03:24]} 9. O-O {[%emt 0:03:02]} Nb8 {[%emt 0:18:01]} 10. Re1 {[%emt 0:07:22]} c5 {[%emt 0:02:33]} 11. b5 {[%emt 0:02:51]} Nbd7 {[%emt 0:04:42]} 12. Bf1 {[%emt 0:01:30]} Ne8 {[%emt 0:05:53]} 13. a4 {[%emt 0:06:02]} f5 {[%emt 0:07:36]} 14. d3 {[%emt 0:02:02]} f4 {[%emt 0:01:14]} 15. a5 {[%emt 0:03:48]} Nc7 {[%emt 0:01:06]} 16. Nd2 {[%emt 0:05:36]} Nf6 {[%emt 0:01:46]} 17. Be2 {[%emt 0:03:20]} Rb8 {[%emt 0:12:45]} 18. axb6 {[%emt 0:05:34]} axb6 {[%emt 0:00:07]} 19. Ra7 {[%emt 0:00:42]} Qe8 {[%emt 0:08:59]} 20. Nd5 {[%emt 0:04:04]} Ncxd5 {[%emt 0:00:28]} 21. exd5 {[%emt 0:00:12]} Qg6 {[%emt 0:05:52]} 22. Qc2 {[%emt 0:08:14]} h5 {[%emt 0:02:51]} 23. Bf3 {[%emt 0:01:30]} Qh6 {[%emt 0:02:10]} 24. Bxe5 {[%emt 0:07:49]} dxe5 {[%emt 0:01:38]} 25. d6 {[%emt 0:00:11]} Bxd6 {[%emt 0:01:11]} 26. Bxb7 {[%emt 0:00:10]} g5 {[%emt 0:09:52]} 27. Ne4 {[%emt 0:02:01]} Nxe4 {[%emt 0:01:05]} 28. Bd5+ {[%emt 0:01:41]} Kh8 {[%emt 0:00:25]} 29. Bxe4 {[%emt 0:00:12]} Kg8 {[%emt 0:00:19]} 30. Rea1 {[%emt 0:01:55]} Rfe8 {[%emt 0:01:55]} 31. d4 {[%emt 0:06:28]} exd4 {[%emt 0:02:29]} 32. Rh7 {[%emt 0:00:32]} Qf6 {[%emt 0:00:35]} 33. Bd5+ {[%emt 0:01:04]} Re6 {[%emt 0:03:24]} 34. Raa7 {[%emt 0:05:31]} Bf8 {[%emt 0:02:08]} 35. Rxh5 {[%emt 0:04:19]} Bg7 {[%emt 0:00:35]} 36. Bxe6+ {[%emt 0:00:35]} Qxe6 {[%emt 0:00:10]} 37. Qh7+ {[%emt 0:00:07]} Kf8 {[%emt 0:00:15]} 38. Qxg7+ {[%emt 0:00:06]} 1-0